[Event "Late-Titled-Tuesday-Blitz-January-23-2024"]
[Site "Chess.com"]
[Date "2024.01.23"]
[Round "2"]
[White "DefiantChair"]
[Black "IngOscarArdila"]
[Result "1-0"]
[WhiteElo "2594"]
[BlackElo "2383"]
[TimeControl "180+1"]
[EndTime "14:18:56 PST"]
[Termination "DefiantChair won on time"]

1. e4 {[%clk 0:03:00.9]} 1... e5 {[%clk 0:02:59.8]} 2. Nf3 {[%clk 0:02:58.7]}
2... Nf6 {[%clk 0:03:00.3]} 3. d4 {[%clk 0:02:58.3]} 3... Nxe4 {[%clk
0:03:00.1]} 4. Bd3 {[%clk 0:02:56.5]} 4... d5 {[%clk 0:03:00]} 5. Nxe5 {[%clk
0:02:56.3]} 5... Nd7 {[%clk 0:03:00.4]} 6. Nxd7 {[%clk 0:02:56.4]} 6... Bxd7
{[%clk 0:03:00.5]} 7. O-O {[%clk 0:02:57.3]} 7... Be7 {[%clk 0:03:00.6]} 8. Nc3
{[%clk 0:02:56.8]} 8... Nf6 {[%clk 0:03:00.5]} 9. Bf4 {[%clk 0:02:51.6]} 9...
O-O {[%clk 0:02:57.1]} 10. Re1 {[%clk 0:02:48.4]} 10... c6 {[%clk 0:02:55.5]}
11. Qf3 {[%clk 0:02:47.2]} 11... Re8 {[%clk 0:02:54.9]} 12. Ne2 {[%clk 0:02:46]}
12... Bg4 {[%clk 0:02:53]} 13. Qg3 {[%clk 0:02:46]} 13... Qd7 {[%clk 0:02:51.2]}
14. h3 {[%clk 0:02:42.9]} 14... Bf5 {[%clk 0:02:50.9]} 15. Be5 {[%clk
0:02:37.5]} 15... Bg6 {[%clk 0:02:29.7]} 16. Bxf6 {[%clk 0:02:29.1]} 16... Bxf6
{[%clk 0:02:29.3]} 17. c3 {[%clk 0:02:29.1]} 17... Re7 {[%clk 0:02:09]} 18. Nf4
{[%clk 0:02:25.5]} 18... Rae8 {[%clk 0:02:08.4]} 19. Rxe7 {[%clk 0:02:24.5]}
19... Qxe7 {[%clk 0:02:00.6]} 20. Bxg6 {[%clk 0:02:20.8]} 20... hxg6 {[%clk
0:02:00]} 21. Nd3 {[%clk 0:02:14.5]} 21... Qd7 {[%clk 0:01:56]} 22. Re1 {[%clk
0:02:10.5]} 22... Rxe1+ {[%clk 0:01:51.9]} 23. Nxe1 {[%clk 0:02:11.4]} 23... Qe6
{[%clk 0:01:48.6]} 24. Qe3 {[%clk 0:02:09.8]} 24... Qd7 {[%clk 0:01:40.4]} 25.
Nd3 {[%clk 0:02:08.5]} 25... b6 {[%clk 0:01:39.9]} 26. Kh2 {[%clk 0:02:06.1]}
26... g5 {[%clk 0:01:36.7]} 27. g3 {[%clk 0:02:02.7]} 27... g6 {[%clk
0:01:36.3]} 28. Qf3 {[%clk 0:02:01.3]} 28... Kg7 {[%clk 0:01:34.5]} 29. Qg4
{[%clk 0:02:01]} 29... Qc7 {[%clk 0:01:28.2]} 30. Qf3 {[%clk 0:01:57.1]} 30...
Qe7 {[%clk 0:01:25.7]} 31. Kg2 {[%clk 0:01:56.7]} 31... a5 {[%clk 0:01:23.7]}
32. Qe3 {[%clk 0:01:53]} 32... Qd7 {[%clk 0:01:06.6]} 33. b3 {[%clk 0:01:46.2]}
33... Qc8 {[%clk 0:00:58.8]} 34. g4 {[%clk 0:01:45.5]} 34... Qd7 {[%clk
0:00:58.1]} 35. Kf1 {[%clk 0:01:43.9]} 35... Qc8 {[%clk 0:00:56.8]} 36. Ke2
{[%clk 0:01:43.6]} 36... Qa6 {[%clk 0:00:55.2]} 37. Kd2 {[%clk 0:01:42.8]} 37...
a4 {[%clk 0:00:55]} 38. b4 {[%clk 0:01:41.2]} 38... Qc4 {[%clk 0:00:44.1]} 39.
Nc1 {[%clk 0:01:38.4]} 39... Qf1 {[%clk 0:00:43.7]} 40. Kc2 {[%clk 0:01:32]}
40... Qh1 {[%clk 0:00:25.4]} 41. Kb2 {[%clk 0:01:23.2]} 41... Qg2 {[%clk
0:00:19.7]} 42. Ka3 {[%clk 0:01:19.1]} 42... Qf1 {[%clk 0:00:17.8]} 43. Kxa4
{[%clk 0:01:07.6]} 43... Qc4 {[%clk 0:00:17.6]} 44. Ka3 {[%clk 0:01:05.3]} 44...
c5 {[%clk 0:00:16.8]} 45. bxc5 {[%clk 0:01:01.2]} 45... bxc5 {[%clk 0:00:16.8]}
46. Nb3 {[%clk 0:01:00]} 46... cxd4 {[%clk 0:00:16]} 47. cxd4 {[%clk 0:00:57.4]}
47... Qa6+ {[%clk 0:00:15.4]} 48. Kb2 {[%clk 0:00:57.2]} 48... Qc4 {[%clk
0:00:13.9]} 49. Qd2 {[%clk 0:00:56.9]} 49... Qf1 {[%clk 0:00:13.2]} 50. a4
{[%clk 0:00:56]} 50... Qxh3 {[%clk 0:00:12.8]} 51. a5 {[%clk 0:00:46]} 51...
Qxg4 {[%clk 0:00:13]} 52. a6 {[%clk 0:00:46]} 52... Qc8 {[%clk 0:00:13.1]} 53.
Qa5 {[%clk 0:00:45.1]} 53... g4 {[%clk 0:00:11.2]} 54. a7 {[%clk 0:00:44.9]}
54... Qa8 {[%clk 0:00:11.4]} 55. Qb6 {[%clk 0:00:43.6]} 55... g3 {[%clk
0:00:10.1]} 56. fxg3 {[%clk 0:00:43.3]} 56... Qe8 {[%clk 0:00:08.7]} 57. Qa6
{[%clk 0:00:32.7]} 57... Qa8 {[%clk 0:00:07.4]} 58. Ka2 {[%clk 0:00:18.5]} 58...
Bg5 {[%clk 0:00:04.8]} 59. Nc5 {[%clk 0:00:16.6]} 59... Bf6 {[%clk 0:00:03.5]}
60. Qb7 {[%clk 0:00:16.3]} 60... Qe8 {[%clk 0:00:02.9]} 61. a8=Q {[%clk
0:00:16.3]} 61... Qe2+ {[%clk 0:00:03.1]} 62. Qb2 {[%clk 0:00:15.7]} 62... Qc4+
{[%clk 0:00:02.3]} 63. Nb3 {[%clk 0:00:16.3]} 1-0

[Event "Late-Titled-Tuesday-Blitz-January-23-2024"]
[Site "Chess.com"]
[Date "2024.01.23"]
[Round "2"]
[White "Yurovskykh_Oleksandr"]
[Black "Angry_Twin"]
[Result "1-0"]
[WhiteElo "2619"]
[BlackElo "2988"]
[TimeControl "180+1"]
[EndTime "14:19:01 PST"]
[Termination "Yurovskykh_Oleksandr won by resignation"]

1. d4 {[%clk 0:03:00.9]} 1... Nf6 {[%clk 0:02:55.1]} 2. Nf3 {[%clk 0:03:01]}
2... d5 {[%clk 0:02:51.3]} 3. c3 {[%clk 0:03:00.8]} 3... Bf5 {[%clk 0:02:45.7]}
4. Qb3 {[%clk 0:03:00.5]} 4... Qc8 {[%clk 0:02:44.9]} 5. Bg5 {[%clk 0:03:00.3]}
5... e6 {[%clk 0:02:44.5]} 6. Bxf6 {[%clk 0:02:59.8]} 6... gxf6 {[%clk
0:02:44.6]} 7. e3 {[%clk 0:03:00.5]} 7... Be7 {[%clk 0:02:41.1]} 8. c4 {[%clk
0:03:00.8]} 8... c6 {[%clk 0:02:41.3]} 9. Nc3 {[%clk 0:03:01.2]} 9... Bg6 {[%clk
0:02:32.7]} 10. Rc1 {[%clk 0:03:01.2]} 10... Qd7 {[%clk 0:02:30.4]} 11. Be2
{[%clk 0:02:59.5]} 11... O-O {[%clk 0:02:30.3]} 12. O-O {[%clk 0:02:59.6]} 12...
Bd6 {[%clk 0:02:21]} 13. g3 {[%clk 0:02:56.6]} 13... Kg7 {[%clk 0:02:14.3]} 14.
Nh4 {[%clk 0:02:56.4]} 14... Be7 {[%clk 0:01:59.1]} 15. Rfe1 {[%clk 0:02:49.9]}
15... f5 {[%clk 0:01:59.1]} 16. Ng2 {[%clk 0:02:50.4]} 16... Bd6 {[%clk
0:01:49.9]} 17. a3 {[%clk 0:02:43.3]} 17... f6 {[%clk 0:01:46.7]} 18. Nf4 {[%clk
0:02:36.4]} 18... Bf7 {[%clk 0:01:44.5]} 19. Qc2 {[%clk 0:02:29.9]} 19... Bxf4
{[%clk 0:01:43.1]} 20. exf4 {[%clk 0:02:26.8]} 20... Rc8 {[%clk 0:01:25.5]} 21.
c5 {[%clk 0:02:24.3]} 21... Qc7 {[%clk 0:01:12.8]} 22. b4 {[%clk 0:02:23.9]}
22... Nd7 {[%clk 0:01:13.3]} 23. Rb1 {[%clk 0:02:24.5]} 23... Nf8 {[%clk
0:01:13.4]} 24. Rb3 {[%clk 0:02:18]} 24... Ng6 {[%clk 0:01:13.5]} 25. Bd3 {[%clk
0:02:15.4]} 25... Re8 {[%clk 0:01:10.2]} 26. Ne2 {[%clk 0:02:07.3]} 26... e5
{[%clk 0:01:04.1]} 27. Bxf5 {[%clk 0:02:05.6]} 27... exf4 {[%clk 0:01:02.7]} 28.
Qd2 {[%clk 0:01:53.9]} 28... fxg3 {[%clk 0:01:00.1]} 29. hxg3 {[%clk 0:01:50.6]}
29... Re7 {[%clk 0:00:59.3]} 30. Bxg6 {[%clk 0:01:46.7]} 30... hxg6 {[%clk
0:00:57.7]} 31. Nf4 {[%clk 0:01:41.1]} 31... g5 {[%clk 0:00:57.1]} 32. Ng2
{[%clk 0:01:34]} 32... Rae8 {[%clk 0:00:54.3]} 33. Rbe3 {[%clk 0:01:33.9]} 33...
Bg6 {[%clk 0:00:53.8]} 34. Rxe7+ {[%clk 0:01:31]} 34... Rxe7 {[%clk 0:00:54]}
35. Rxe7+ {[%clk 0:01:31.2]} 35... Qxe7 {[%clk 0:00:54.9]} 36. Qe3 {[%clk
0:01:27.9]} 36... Qd7 {[%clk 0:00:55.3]} 37. f3 {[%clk 0:01:25.3]} 37... Kf7
{[%clk 0:00:53]} 38. g4 {[%clk 0:01:24.1]} 38... Qc7 {[%clk 0:00:51.8]} 39. Kf2
{[%clk 0:01:17.4]} 39... Qh2 {[%clk 0:00:50.7]} 40. Qe1 {[%clk 0:01:17.1]} 40...
Bd3 {[%clk 0:00:47.5]} 41. Qd2 {[%clk 0:01:09.1]} 41... Bc4 {[%clk 0:00:46.1]}
42. Qe1 {[%clk 0:01:05.1]} 42... b6 {[%clk 0:00:44.1]} 43. Qg1 {[%clk
0:01:01.9]} 43... Qh7 {[%clk 0:00:41.9]} 44. Qd1 {[%clk 0:00:50.9]} 44... b5
{[%clk 0:00:42.5]} 45. Kg1 {[%clk 0:00:45]} 45... Qh3 {[%clk 0:00:35.8]} 46. Kf2
{[%clk 0:00:43.4]} 46... f5 {[%clk 0:00:30.5]} 47. gxf5 {[%clk 0:00:40]} 47...
Qxf5 {[%clk 0:00:31.4]} 48. Ne3 {[%clk 0:00:38.5]} 48... Qf4 {[%clk 0:00:27.7]}
49. Ng4 {[%clk 0:00:36.8]} 49... Kg7 {[%clk 0:00:25.6]} 50. Kg2 {[%clk
0:00:30.7]} 50... Qf5 {[%clk 0:00:25]} 51. Qd2 {[%clk 0:00:26.8]} 51... Kg6
{[%clk 0:00:20.9]} 52. Kg3 {[%clk 0:00:24.4]} 52... Kg7 {[%clk 0:00:18.3]} 53.
Qe3 {[%clk 0:00:24.1]} 53... Kf8 {[%clk 0:00:12.8]} 54. Qe5 {[%clk 0:00:20.6]}
54... Qb1 {[%clk 0:00:13]} 55. Qd6+ {[%clk 0:00:18.4]} 55... Kg8 {[%clk
0:00:09.7]} 56. Qd8+ {[%clk 0:00:16.1]} 56... Kh7 {[%clk 0:00:07.8]} 57. Qe7+
{[%clk 0:00:16.1]} 57... Kh8 {[%clk 0:00:07.1]} 58. Qf6+ {[%clk 0:00:15.8]}
58... Kh7 {[%clk 0:00:06.3]} 59. Qh6+ {[%clk 0:00:16.1]} 59... Kg8 {[%clk
0:00:06.8]} 60. Qxg5+ {[%clk 0:00:16.8]} 60... Kf7 {[%clk 0:00:07.2]} 61. Ne5+
{[%clk 0:00:16.2]} 61... Ke6 {[%clk 0:00:03.1]} 62. Qg6+ {[%clk 0:00:12.7]}
62... Qxg6+ {[%clk 0:00:02.6]} 63. Nxg6 {[%clk 0:00:13.6]} 63... Kf5 {[%clk
0:00:03.2]} 64. Ne7+ {[%clk 0:00:13.3]} 64... Ke6 {[%clk 0:00:02.8]} 65. Nxc6
{[%clk 0:00:14.2]} 65... a6 {[%clk 0:00:03.2]} 66. Kf4 {[%clk 0:00:12.6]} 66...
a5 {[%clk 0:00:04.1]} 67. Nxa5 {[%clk 0:00:12.7]} 67... Bd3 {[%clk 0:00:04.8]}
68. Nc6 {[%clk 0:00:12.9]} 68... Bg6 {[%clk 0:00:05.7]} 69. Ne5 {[%clk
0:00:13.8]} 69... Be8 {[%clk 0:00:06]} 70. Kg5 {[%clk 0:00:14.4]} 70... Ke7
{[%clk 0:00:06.5]} 71. f4 {[%clk 0:00:15]} 71... Ke6 {[%clk 0:00:07.4]} 72. f5+
{[%clk 0:00:15.5]} 72... Ke7 {[%clk 0:00:08.3]} 73. f6+ {[%clk 0:00:16.1]} 73...
Ke6 {[%clk 0:00:09]} 74. f7 {[%clk 0:00:16.7]} 74... Bxf7 {[%clk 0:00:09.6]} 75.
Nxf7 {[%clk 0:00:17.6]} 75... Kxf7 {[%clk 0:00:10.5]} 76. Kf5 {[%clk 0:00:18]}
76... Ke7 {[%clk 0:00:11.1]} 77. Ke5 {[%clk 0:00:18.6]} 77... Kd7 {[%clk
0:00:12]} 78. Kxd5 {[%clk 0:00:19.2]} 1-0

[Event "Late-Titled-Tuesday-Blitz-January-23-2024"]
[Site "Chess.com"]
[Date "2024.01.23"]
[Round "2"]
[White "Ali_rastbod"]
[Black "mjelcic"]
[Result "1/2-1/2"]
[WhiteElo "2698"]
[BlackElo "2221"]
[TimeControl "180+1"]
[EndTime "14:19:01 PST"]
[Termination "Game drawn by repetition"]

1. e4 {[%clk 0:02:46.2]} 1... c5 {[%clk 0:02:59.7]} 2. Nf3 {[%clk 0:02:44.6]}
2... g6 {[%clk 0:02:59.9]} 3. c3 {[%clk 0:02:44.6]} 3... d5 {[%clk 0:02:57.6]}
4. e5 {[%clk 0:02:44.9]} 4... Nc6 {[%clk 0:02:57.2]} 5. Bb5 {[%clk 0:02:44.3]}
5... Bg4 {[%clk 0:02:54.6]} 6. O-O {[%clk 0:02:44.2]} 6... Nh6 {[%clk 0:02:53]}
7. d4 {[%clk 0:02:41.3]} 7... cxd4 {[%clk 0:02:52.7]} 8. cxd4 {[%clk 0:02:35.4]}
8... Bg7 {[%clk 0:02:52.2]} 9. h3 {[%clk 0:02:33.3]} 9... Bxf3 {[%clk
0:02:51.5]} 10. Bxc6+ {[%clk 0:02:34]} 10... bxc6 {[%clk 0:02:50]} 11. Qxf3
{[%clk 0:02:34.6]} 11... Nf5 {[%clk 0:02:42]} 12. Qd3 {[%clk 0:02:33.2]} 12...
Qb6 {[%clk 0:02:36.5]} 13. Rd1 {[%clk 0:02:30.6]} 13... e6 {[%clk 0:02:29.4]}
14. b3 {[%clk 0:02:22.4]} 14... O-O {[%clk 0:02:26.2]} 15. Ba3 {[%clk
0:02:19.7]} 15... Rfc8 {[%clk 0:02:15.3]} 16. Bc5 {[%clk 0:02:19.6]} 16... Qb5
{[%clk 0:02:14.6]} 17. Nc3 {[%clk 0:02:19.7]} 17... Qxd3 {[%clk 0:02:14.3]} 18.
Rxd3 {[%clk 0:02:20.6]} 18... Bf8 {[%clk 0:02:00.3]} 19. Na4 {[%clk 0:02:19.7]}
19... Bxc5 {[%clk 0:01:47.9]} 20. Nxc5 {[%clk 0:02:20.6]} 20... Kg7 {[%clk
0:01:45.1]} 21. Rc1 {[%clk 0:02:15.2]} 21... a5 {[%clk 0:01:36.9]} 22. g4 {[%clk
0:02:08.2]} 22... Ne7 {[%clk 0:01:36.8]} 23. f4 {[%clk 0:02:06.7]} 23... Rab8
{[%clk 0:01:25.9]} 24. Kf2 {[%clk 0:02:04.5]} 24... Rb4 {[%clk 0:01:22]} 25. Ke3
{[%clk 0:02:04.1]} 25... Rb5 {[%clk 0:01:07.5]} 26. Rdc3 {[%clk 0:02:03.8]}
26... Rc7 {[%clk 0:01:05.3]} 27. Nd3 {[%clk 0:01:58.3]} 27... Rc8 {[%clk
0:01:04.9]} 28. Rc5 {[%clk 0:01:57.7]} 28... Rxc5 {[%clk 0:01:04.1]} 29. Rxc5
{[%clk 0:01:57.7]} 29... Ra8 {[%clk 0:01:03.9]} 30. Nb2 {[%clk 0:01:56]} 30...
Kf8 {[%clk 0:01:03]} 31. Na4 {[%clk 0:01:44.1]} 31... Ke8 {[%clk 0:01:02.4]} 32.
Rc1 {[%clk 0:01:43.5]} 32... Rb8 {[%clk 0:01:00.6]} 33. Kd3 {[%clk 0:01:40.5]}
33... Rb4 {[%clk 0:01:00]} 34. Rc5 {[%clk 0:01:39.5]} 34... Rb5 {[%clk
0:00:55.8]} 35. Kc3 {[%clk 0:01:31.3]} 35... Kd8 {[%clk 0:00:51.1]} 36. Kb2
{[%clk 0:01:29.7]} 36... Kc7 {[%clk 0:00:48]} 37. Ka3 {[%clk 0:01:18.2]} 37...
Nc8 {[%clk 0:00:45.9]} 38. Rc1 {[%clk 0:01:14.4]} 38... Rb4 {[%clk 0:00:41]} 39.
Rd1 {[%clk 0:01:12.6]} 39... Nb6 {[%clk 0:00:39.4]} 40. Nc5 {[%clk 0:01:13]}
40... Rb5 {[%clk 0:00:36.4]} 41. Kb2 {[%clk 0:01:08.7]} 41... Nd7 {[%clk
0:00:36.2]} 42. Nd3 {[%clk 0:00:53.9]} 42... a4 {[%clk 0:00:32.9]} 43. b4 {[%clk
0:00:41.7]} 43... Nb6 {[%clk 0:00:32.6]} 44. Kc3 {[%clk 0:00:41.7]} 44... Nc4
{[%clk 0:00:31.2]} 45. f5 {[%clk 0:00:41.8]} 45... gxf5 {[%clk 0:00:29.6]} 46.
gxf5 {[%clk 0:00:42.7]} 46... Ne3 {[%clk 0:00:28.1]} 47. Rg1 {[%clk 0:00:42.6]}
47... Nxf5 {[%clk 0:00:27.5]} 48. Nc5 {[%clk 0:00:36.6]} 48... Kb6 {[%clk
0:00:18.7]} 49. Rg8 {[%clk 0:00:32.8]} 49... Nxd4 {[%clk 0:00:17.2]} 50. Nxa4+
{[%clk 0:00:19.4]} 50... Kc7 {[%clk 0:00:15.4]} 51. Rg7 {[%clk 0:00:14.6]} 51...
Ne2+ {[%clk 0:00:13]} 52. Kb3 {[%clk 0:00:12.2]} 52... Nd4+ {[%clk 0:00:13]} 53.
Kc3 {[%clk 0:00:10.4]} 53... Ne2+ {[%clk 0:00:13.4]} 54. Kd2 {[%clk 0:00:08.7]}
54... Rxb4 {[%clk 0:00:13.5]} 55. Rxf7+ {[%clk 0:00:08.3]} 55... Kd8 {[%clk
0:00:13.3]} 56. Nc5 {[%clk 0:00:09.2]} 56... Nd4 {[%clk 0:00:12.3]} 57. Rd7+
{[%clk 0:00:07.3]} 57... Ke8 {[%clk 0:00:12.4]} 58. Rxh7 {[%clk 0:00:08.2]}
58... Kf8 {[%clk 0:00:11.9]} 59. a3 {[%clk 0:00:06.2]} 59... Rc4 {[%clk
0:00:11.1]} 60. Nd7+ {[%clk 0:00:06.8]} 60... Kg8 {[%clk 0:00:09.7]} 61. Nf6+
{[%clk 0:00:07.4]} 61... Kf8 {[%clk 0:00:10.2]} 62. Kd1 {[%clk 0:00:03.1]} 62...
Nf3 {[%clk 0:00:09.1]} 63. Nd7+ {[%clk 0:00:02.9]} 63... Kg8 {[%clk 0:00:09.2]}
64. Nf6+ {[%clk 0:00:03]} 64... Kf8 {[%clk 0:00:09.7]} 65. Rh8+ {[%clk
0:00:02.9]} 65... Kf7 {[%clk 0:00:09.6]} 66. Rh7+ {[%clk 0:00:03.4]} 66... Kf8
{[%clk 0:00:10]} 1/2-1/2

[Event "Late-Titled-Tuesday-Blitz-January-23-2024"]
[Site "Chess.com"]
[Date "2024.01.23"]
[Round "2"]
[White "VladimirKramnik"]
[Black "DraningWaterHi"]
[Result "1/2-1/2"]
[WhiteElo "2939"]
[BlackElo "2192"]
[TimeControl "180+1"]
[EndTime "14:19:03 PST"]
[Termination "Game drawn - insufficient material"]

1. e4 {[%clk 0:03:00.9]} 1... c5 {[%clk 0:02:57.5]} 2. Nf3 {[%clk 0:03:00.3]}
2... d6 {[%clk 0:02:57.1]} 3. c3 {[%clk 0:02:59.7]} 3... Nf6 {[%clk 0:02:56.8]}
4. g3 {[%clk 0:02:59.7]} 4... Nc6 {[%clk 0:02:55.8]} 5. d3 {[%clk 0:02:59.1]}
5... g6 {[%clk 0:02:56]} 6. Bg2 {[%clk 0:02:59.4]} 6... Bg7 {[%clk 0:02:56.6]}
7. O-O {[%clk 0:02:59.7]} 7... O-O {[%clk 0:02:57.2]} 8. Re1 {[%clk 0:03:00.3]}
8... Rb8 {[%clk 0:02:56.8]} 9. a4 {[%clk 0:02:59.8]} 9... a6 {[%clk 0:02:56.4]}
10. h3 {[%clk 0:02:57.7]} 10... b5 {[%clk 0:02:56.5]} 11. axb5 {[%clk 0:02:57]}
11... axb5 {[%clk 0:02:57.4]} 12. d4 {[%clk 0:02:57.2]} 12... Bd7 {[%clk
0:02:54]} 13. dxc5 {[%clk 0:02:36.6]} 13... dxc5 {[%clk 0:02:36.2]} 14. Bf4
{[%clk 0:02:35.1]} 14... Rc8 {[%clk 0:02:27.9]} 15. e5 {[%clk 0:02:34.3]} 15...
Nh5 {[%clk 0:02:27.6]} 16. Bg5 {[%clk 0:02:17.1]} 16... f6 {[%clk 0:02:26.5]}
17. Be3 {[%clk 0:01:52.1]} 17... Nxe5 {[%clk 0:02:10.1]} 18. Nxe5 {[%clk
0:01:51.8]} 18... fxe5 {[%clk 0:02:11]} 19. Nd2 {[%clk 0:01:51.3]} 19... c4
{[%clk 0:02:00.2]} 20. Ra7 {[%clk 0:01:44.4]} 20... Nf6 {[%clk 0:01:56.7]} 21.
Ne4 {[%clk 0:01:38.2]} 21... Bf5 {[%clk 0:01:52.8]} 22. Nc5 {[%clk 0:01:30.4]}
22... h5 {[%clk 0:01:34.2]} 23. Qxd8 {[%clk 0:01:15.1]} 23... Rfxd8 {[%clk
0:01:33.3]} 24. Rb7 {[%clk 0:01:05.6]} 24... Nd5 {[%clk 0:01:25.4]} 25. Rxb5
{[%clk 0:00:55.2]} 25... Nxe3 {[%clk 0:01:25.2]} 26. fxe3 {[%clk 0:00:42.4]}
26... Bd3 {[%clk 0:01:16.3]} 27. Ne6 {[%clk 0:00:33.3]} 27... Rd6 {[%clk
0:01:12.1]} 28. Nxg7 {[%clk 0:00:32.7]} 28... Kxg7 {[%clk 0:01:13]} 29. Rxe5
{[%clk 0:00:32.4]} 29... Kf6 {[%clk 0:01:13.6]} 30. Rb5 {[%clk 0:00:32.1]} 30...
Rdd8 {[%clk 0:00:54.2]} 31. g4 {[%clk 0:00:30.6]} 31... hxg4 {[%clk 0:00:51.5]}
32. hxg4 {[%clk 0:00:31.1]} 32... Rb8 {[%clk 0:00:50.1]} 33. g5+ {[%clk
0:00:30.8]} 33... Kg7 {[%clk 0:00:47]} 34. Re5 {[%clk 0:00:30]} 34... Rd7 {[%clk
0:00:43.9]} 35. Ra1 {[%clk 0:00:18]} 35... Rxb2 {[%clk 0:00:42.2]} 36. Ra8
{[%clk 0:00:16.1]} 36... Rb1+ {[%clk 0:00:39.3]} 37. Kh2 {[%clk 0:00:15.7]}
37... Rb2 {[%clk 0:00:36.9]} 38. Kg3 {[%clk 0:00:16.2]} 38... Rb6 {[%clk
0:00:32.9]} 39. Bd5 {[%clk 0:00:15.9]} 39... Rxd5 {[%clk 0:00:23.8]} 40. Rxd5
{[%clk 0:00:15]} 40... Be4 {[%clk 0:00:24.4]} 41. Rad8 {[%clk 0:00:10.2]} 41...
Bxd5 {[%clk 0:00:24.4]} 42. Rxd5 {[%clk 0:00:10.6]} 42... Rc6 {[%clk 0:00:23.9]}
43. Kf4 {[%clk 0:00:09.6]} 43... Kf7 {[%clk 0:00:23.6]} 44. Ke5 {[%clk
0:00:09.5]} 44... Re6+ {[%clk 0:00:20.6]} 45. Kd4 {[%clk 0:00:09.3]} 45... Kg7
{[%clk 0:00:15.1]} 46. e4 {[%clk 0:00:09]} 46... Kf7 {[%clk 0:00:15.2]} 47. Rc5
{[%clk 0:00:08.3]} 47... Rd6+ {[%clk 0:00:14.9]} 48. Kxc4 {[%clk 0:00:08]} 48...
Rd1 {[%clk 0:00:14.9]} 49. Rd5 {[%clk 0:00:07.8]} 49... Re1 {[%clk 0:00:14.6]}
50. Kd4 {[%clk 0:00:07.7]} 50... Ke6 {[%clk 0:00:15]} 51. c4 {[%clk 0:00:06.5]}
51... Rd1+ {[%clk 0:00:15.5]} 52. Ke3 {[%clk 0:00:05.7]} 52... Re1+ {[%clk
0:00:15.7]} 53. Kd3 {[%clk 0:00:05.7]} 53... Rd1+ {[%clk 0:00:15.8]} 54. Kc3
{[%clk 0:00:04.5]} 54... Rc1+ {[%clk 0:00:16.2]} 55. Kd4 {[%clk 0:00:04.6]}
55... Rd1+ {[%clk 0:00:16.4]} 56. Kc5 {[%clk 0:00:05.2]} 56... Re1 {[%clk
0:00:16.3]} 57. Rd4 {[%clk 0:00:05.2]} 57... Ke5 {[%clk 0:00:14.4]} 58. Rd7
{[%clk 0:00:05.2]} 58... e6 {[%clk 0:00:13.3]} 59. Rg7 {[%clk 0:00:04.6]} 59...
Rxe4 {[%clk 0:00:13.1]} 60. Rxg6 {[%clk 0:00:04.7]} 60... Kf5 {[%clk 0:00:13.7]}
61. Rg8 {[%clk 0:00:04.8]} 61... Re1 {[%clk 0:00:13]} 62. Kd6 {[%clk 0:00:04.4]}
62... e5 {[%clk 0:00:13.1]} 63. c5 {[%clk 0:00:04.6]} 63... e4 {[%clk
0:00:13.5]} 64. g6 {[%clk 0:00:03.9]} 64... e3 {[%clk 0:00:13.5]} 65. g7 {[%clk
0:00:03.2]} 65... Kg6 {[%clk 0:00:13.2]} 66. Kc7 {[%clk 0:00:03.2]} 66... Rc1
{[%clk 0:00:12.8]} 67. c6 {[%clk 0:00:02.6]} 67... Kf7 {[%clk 0:00:12.4]} 68.
Rf8+ {[%clk 0:00:02.7]} 68... Kxg7 {[%clk 0:00:12.5]} 69. Re8 {[%clk 0:00:03.4]}
69... Rc3 {[%clk 0:00:12]} 70. Kd7 {[%clk 0:00:03.6]} 70... Kf6 {[%clk
0:00:10.5]} 71. Re6+ {[%clk 0:00:03.5]} 71... Kf5 {[%clk 0:00:10.4]} 72. Re8
{[%clk 0:00:03.5]} 72... Kf4 {[%clk 0:00:10.6]} 73. c7 {[%clk 0:00:03.8]} 73...
Rxc7+ {[%clk 0:00:10.1]} 74. Kxc7 {[%clk 0:00:03.9]} 74... Kf3 {[%clk
0:00:10.2]} 75. Rxe3+ {[%clk 0:00:04]} 75... Kxe3 {[%clk 0:00:10.6]} 1/2-1/2